bitfinex-derivatives/quotes_ETHF0:USTF0_20241026
["timestamp","ask_amount","ask_price","bid_price","bid_amount"]
[1729968230583,3.2078,2483.0,2482.8,2.1801672]
[1729968230883,3.611,2483.0,2482.8,2.5833772]
[1729968231180,0.4032,2483.0,2482.8,2.5833772]
[1729968232790,0.4066,2482.9,2482.8,2.5833772]
[1729968235883,3.6332,2483.2,2482.8,6.2081672]
[1729968236079,4.47497,2483.2,2483.1,1.3069672]
[1729968236281,4.47497,2483.2,2483.1,1.7101472]
[1729968236886,4.0718,2483.2,2483.1,1.7101472]
[1729968237081,4.47496,2483.2,2483.1,1.3069672]
[1729968237588,4.47496,2483.2,2483.1,1.7101472]
[1729968238584,1.26716,2483.2,2483.1,1.7101472]
[1729968238986,1.26716,2483.2,2483.1,1.3069672]
[1729968239292,0.40318,2483.1,2483.0,1.7101672]
[1729968239590,1.26717,2483.2,2483.0,1.7101672]
[1729968241081,0.40318,2483.1,2483.0,1.3069672]
[1729968241288,0.40318,2483.1,2483.0,0.40319]
[1729968241589,0.40318,2483.1,2482.9,1.7101672]
[1729968242886,0.40318,2483.1,2483.0,1.7101672]
[1729968243189,0.40318,2483.1,2483.0,1.3069672]
[1729968243790,0.40318,2483.1,2483.0,1.7101672]
[1729968244878,0.864,2483.2,2483.1,0.40318]
[1729968244879,1.26717,2483.2,2483.1,0.40318]
[1729968245080,1.26717,2483.2,2483.1,1.7101472]
[1729968245690,1.26717,2483.2,2483.1,1.3069672]
[1729968247091,1.26717,2483.2,2483.0,1.7101572]
[1729968247092,0.40318,2483.1,2483.0,1.7101572]
[1729968247285,1.26717,2483.2,2483.0,1.7101572]
[1729968247995,1.26718,2483.2,2483.0,1.7101572]
[1729968249085,1.26716,2483.2,2483.1,1.7101472]
[1729968249392,1.26716,2483.2,2483.1,1.3069672]
[1729968249595,0.864,2483.2,2483.0,1.7101572]
[1729968249795,0.40318,2483.1,2483.0,1.7101572]
[1729968249999,1.26718,2483.2,2483.0,1.7101572]
[1729968251285,0.40318,2483.1,2483.0,1.7101572]
[1729968251490,1.26718,2483.2,2483.0,1.7101572]
[1729968253399,1.26718,2483.2,2483.1,0.40318]
[1729968253800,1.26718,2483.2,2483.0,1.7101572]
[1729968254398,1.26718,2483.2,2483.0,1.3069672]
[1729968254700,1.26718,2483.2,2483.0,1.7101472]
[1729968257802,0.864,2483.2,2483.1,1.7101472]
[1729968258601,3.2078,2483.8,2483.1,6.76720874]
[1729968258799,0.8657,2483.9,2483.8,0.40307]
[1729968259002,0.8657,2484.2,2483.8,1.3069672]
[1729968259202,1.26871,2484.2,2484.1,1.3069672]
[1729968259901,6.6012772,2484.2,2483.8,0.40305]
[1729968260104,0.84873,2484.1,2483.9,1.3069672]
[1729968260293,0.40303,2484.0,2483.9,1.3069672]
[1729968260601,1.7526672,2484.1,2483.9,1.3069672]
[1729968260791,1.3069672,2484.0,2483.6,0.4223]
[1729968260992,3.6535,2484.1,2483.6,1.7100672]
[1729968260993,0.40307,2483.8,2483.6,1.7100672]
[1729968261306,0.8383,2483.7,2483.6,0.4031]
[1729968261603,1.284,2483.7,2483.6,1.7100672]
[1729968265608,1.284,2483.7,2483.6,0.4031]
[1729968265814,1.284,2483.7,2483.6,1.7100672]
[1729968267705,1.68708,2483.7,2483.6,1.7100672]
[1729968268602,1.284,2483.7,2483.5,1.3069672]
[1729968268802,0.40312,2483.5,2483.3,0.40314]
[1729968269108,0.40312,2483.5,2483.4,1.7100972]
[1729968272012,0.40312,2483.5,2483.4,1.3069672]
[1729968272418,0.40312,2483.5,2483.4,1.7100972]
[1729968277115,0.40311,2483.6,2483.5,0.40311]
[1729968277422,0.40311,2483.6,2483.5,1.7100772]
[1729968278015,0.4457,2483.7,2483.5,5.3333672]
[1729968278219,0.4457,2483.7,2483.4,1.3069672]
[1729968278220,0.8301,2483.9,2483.8,0.40307]
[1729968278523,0.8301,2483.9,2483.8,1.7100372]
[1729968279520,0.8301,2483.9,2483.6,0.4081]
[1729968279521,0.8301,2483.9,2483.7,1.3069672]
[1729968279831,0.8301,2483.9,2483.7,1.7100372]
[1729968279832,1.23316,2483.9,2483.7,1.7100372]
[1729968281925,0.40307,2483.8,2483.7,1.7100372]
[1729968282122,0.40307,2483.8,2483.7,1.3069672]
[1729968282426,0.8301,2483.9,2483.3,3.2078]
[1729968282729,0.40308,2483.8,2483.7,1.3069672]
[1729968285226,1.7182672,2484.0,2483.8,0.40307]
[1729968285227,0.81434,2484.0,2483.8,0.40307]
[1729968285430,0.4113,2484.0,2483.9,1.7100172]
[1729968295439,0.81433,2484.0,2483.9,1.7100172]
[1729968295638,0.81433,2484.0,2483.9,1.3069672]
[1729968296433,0.81433,2484.0,2483.9,1.7100172]
[1729968296634,0.81433,2484.0,2483.9,1.3069672]
[1729968298532,0.40306,2483.9,2483.8,1.3069672]
[1729968298733,0.8401,2483.9,2483.8,1.3069672]
[1729968298933,1.24315,2483.9,2483.8,1.3069672]
[1729968299139,1.24315,2483.9,2483.8,1.7100372]
[1729968299732,1.24315,2483.9,2483.8,0.40307]
[1729968300335,1.24316,2483.9,2483.8,1.7100372]
[1729968300536,1.24316,2483.9,2483.8,1.3069672]
[1729968300939,1.24316,2483.9,2483.8,1.7100372]
[1729968301941,0.8401,2483.9,2483.8,1.7100372]
[1729968302340,0.4223,2483.9,2483.8,1.7100372]
[1729968303244,0.81435,2484.0,2483.8,5.3333672]
[1729968303245,0.4113,2484.0,2483.8,5.3333672]
[1729968303548,3.2078,2484.3,2484.2,0.403]
[1729968303743,0.40299,2484.4,2484.2,1.3069672]
[1729968303945,0.40299,2484.4,2484.3,1.7099572]
[1729968304249,1.27646,2484.5,2484.3,1.7099572]
[1729968304547,1.27646,2484.5,2484.4,1.3069672]
[1729968308346,0.8735,2484.5,2484.4,1.7099372]
[1729968308945,3.2078,2484.6,2484.4,1.3069672]
[1729968309152,0.40294,2484.6,2484.5,1.3069672]
[1729968310550,0.80824,2484.7,2484.5,1.3069672]
[1729968310740,0.80824,2484.7,2484.6,1.3069672]
[1729968311151,0.80822,2484.7,2484.6,1.3069672]
[1729968313447,0.4053,2484.7,2484.6,1.3069672]
[1729968313650,0.80822,2484.7,2484.6,1.3069672]
[1729968318655,0.4053,2484.7,2484.5,1.3069672]
[1729968318857,0.80823,2484.7,2484.5,1.7099172]
[1729968319254,0.4053,2484.7,2484.6,1.7099072]
[1729968319453,1.26862,2484.8,2484.7,0.40292]
[1729968319454,0.4453,2484.8,2484.7,0.40292]
[1729968319651,0.8586,2484.8,2484.7,1.7098872]
[1729968320052,0.8586,2484.8,2484.7,1.3069672]
[1729968320257,1.2615,2484.8,2484.7,1.3069672]
[1729968321762,1.2615,2484.8,2484.7,1.7098872]
[1729968321763,0.8586,2484.8,2484.7,1.7098872]
[1729968322357,1.2615,2484.8,2484.7,1.3069672]
[1729968324153,1.2615,2484.8,2484.7,1.7098872]
[1729968324357,1.2615,2484.8,2484.7,1.3069672]
[1729968325155,1.2615,2484.8,2484.7,1.7098872]
[1729968325967,0.8586,2484.8,2484.7,1.7098872]
[1729968326154,1.2615,2484.8,2484.7,1.7098872]
[1729968326963,1.2615,2484.8,2484.7,1.3069672]
[1729968327465,1.2615,2484.8,2484.4,0.4091]
[1729968327466,0.8586,2484.8,2484.4,0.4091]
[1729968327655,0.40294,2484.6,2484.4,0.81206]
[1729968327966,0.40294,2484.6,2484.5,1.3069672]
[1729968332160,4.9600672,2484.8,2484.2,0.8792]
[1729968332365,3.61075,2484.5,2484.4,1.3069672]
[1729968332772,4.5147672,2484.5,2483.9,4.0533]
[1729968332963,3.6108,2484.2,2484.1,1.3069672]
[1729968333159,4.5147672,2484.2,2483.6,0.4294]
[1729968333375,4.5147672,2483.9,2483.7,1.3069672]
[1729968333572,0.40309,2483.7,2483.5,0.40311]
[1729968333777,0.40309,2483.7,2483.4,2.1394872]
[1729968333960,0.40309,2483.7,2483.5,0.40311]
[1729968334275,0.40309,2483.7,2483.6,1.3069672]
[1729968337071,0.4057,2483.8,2483.6,1.3069672]
[1729968337371,0.40308,2483.7,2483.5,0.40311]
[1729968337874,0.4057,2483.8,2483.5,0.40311]
[1729968338069,0.80877,2483.8,2483.7,1.3069672]
[1729968340274,1.24377,2483.8,2483.7,1.3069672]
[1729968340776,1.69067,2483.8,2483.7,1.3069672]
[1729968341484,2.5945672,2483.8,2483.5,1.3069672]
[1729968341769,4.5147672,2483.6,2482.5,3.2078]
[1729968341983,1.7101772,2482.9,2482.8,1.3069672]
[1729968342274,0.40321,2482.9,2482.8,1.3069672]
[1729968344367,0.40321,2482.9,2482.6,3.67895436]
[1729968346272,0.40323,2482.8,2482.6,3.67895436]
[1729968346973,3.2078,2483.0,2482.6,3.67895436]
[1729968347178,0.40322,2482.9,2482.6,3.67895436]
[1729968349079,3.2078,2483.0,2482.6,3.27569436]
[1729968349287,0.40321,2482.9,2482.6,3.27569436]
[1729968349577,0.40321,2482.9,2482.6,3.67895436]
[1729968349979,3.2078,2483.0,2482.6,3.27569436]
[1729968350167,0.40324,2482.8,2482.6,3.27569436]
[1729968350572,0.40323,2482.9,2482.6,3.67895436]
[1729968350779,3.2078,2483.0,2482.6,3.67895436]
[1729968351071,0.40323,2482.8,2482.6,3.67895436]
[1729968351773,0.40323,2482.8,2482.6,3.27569436]
[1729968352178,0.40323,2482.8,2482.6,3.67895436]
[1729968353573,4.4767,2483.1,2482.6,3.67895436]
[1729968353776,0.40322,2482.9,2482.7,0.40324]
[1729968354177,0.40321,2483.0,2482.7,0.40324]
[1729968354586,3.6156,2483.1,2482.9,2.83259436]
[1729968354884,3.6156,2483.1,2483.0,0.4363]
[1729968355382,0.4032,2483.0,2482.8,0.40322]
[1729968356473,0.4078,2483.1,2482.8,3.23581436]
[1729968356474,0.81099,2483.1,2482.8,3.23581436]
[1729968359385,0.4078,2483.1,2482.8,2.83259436]
[1729968359890,0.4078,2483.1,2482.9,0.8482]
[1729968360186,0.81099,2483.1,2482.9,0.8482]
[1729968361577,0.81099,2483.1,2482.9,0.445]
[1729968361779,0.81099,2483.1,2482.9,0.84821]
[1729968362191,0.4078,2483.1,2482.9,0.84821]
[1729968362387,0.81099,2483.1,2482.9,0.84821]
[1729968363088,0.4032,2483.0,2482.9,0.445]
[1729968363475,0.4032,2483.0,2482.9,4.4722]
[1729968364084,0.4032,2483.0,2482.9,0.445]
[1729968365184,0.4032,2483.0,2482.8,3.23581436]
[1729968365582,0.8422,2483.0,2482.8,3.23581436]
[1729968365986,0.439,2483.0,2482.8,3.23581436]
[1729968366290,0.84221,2483.0,2482.9,1.30736667]
[1729968366988,0.84221,2483.0,2482.9,1.71057667]
[1729968367985,0.84221,2483.0,2482.9,1.30736667]
[1729968369191,0.84221,2483.0,2482.9,1.71057667]
[1729968370793,0.84221,2483.0,2482.9,1.30736667]
[1729968371593,0.84221,2483.0,2482.9,1.71057667]
[1729968371786,0.84221,2483.0,2482.9,1.30736667]
[1729968372691,0.84221,2483.0,2482.9,1.71057667]
[1729968375691,0.439,2483.0,2482.9,1.71057667]
[1729968375894,0.40317,2483.2,2482.9,1.30736667]
[1729968376087,4.4777,2483.4,2483.1,1.71053667]
[1729968376088,0.83976,2483.3,2483.1,1.71053667]
[1729968376287,0.83976,2483.3,2483.2,1.30736667]
[1729968376889,0.4366,2483.3,2483.2,1.30736667]
[1729968377092,1.30736667,2483.7,2483.2,5.33456667]
[1729968377093,0.4031,2483.6,2483.2,5.33456667]
[1729968377394,0.8397,2483.6,2483.5,1.30736667]
[1729968377986,0.4366,2483.6,2483.5,1.30736667]
[1729968378195,3.2078,2483.7,2483.5,5.33376667]
[1729968378496,3.2078,2483.7,2483.6,1.30736667]
[1729968378497,3.61088,2483.7,2483.6,1.30736667]
[1729968379398,0.40308,2483.7,2483.6,1.30736667]
[1729968380299,0.4366,2483.8,2483.5,1.30736667]
[1729968380300,0.40311,2483.6,2483.5,1.30736667]
[1729968381707,0.40311,2483.6,2483.3,1.30736667]
[1729968381708,0.40312,2483.5,2483.3,1.30736667]
[1729968381994,0.40313,2483.4,2483.3,1.30736667]
[1729968382197,0.82753,2483.4,2483.3,1.30736667]
[1729968386901,0.4244,2483.4,2483.3,1.71051667]
[1729968387800,0.4244,2483.4,2483.3,1.30736667]
[1729968389702,0.4244,2483.4,2483.3,1.71051667]
[1729968389903,0.4244,2483.4,2483.3,1.30736667]
[1729968390106,0.4244,2483.4,2483.3,1.71051667]
[1729968390298,0.40313,2483.5,2483.3,1.71051667]
[1729968390504,0.40313,2483.5,2483.4,1.30736667]
[1729968392001,0.40318,2483.1,2483.0,0.4149]
[1729968392200,0.40317,2483.2,2483.1,1.30736667]
[1729968393103,1.30736667,2483.3,2483.0,1.30736667]
[1729968393305,1.30736667,2483.3,2482.9,1.30736667]
[1729968393306,0.4032,2483.0,2482.9,1.30736667]
[1729968393705,1.6801,2483.0,2482.9,1.30736667]
[1729968398412,1.2769,2483.0,2482.6,1.28025]
[1729968398616,0.40325,2482.7,2482.6,1.28025]
[1729968399005,1.2769,2483.0,2482.4,0.40329]
[1729968399006,0.40328,2482.5,2482.4,0.40329]
[1729968399708,0.84728,2482.5,2482.4,0.40329]
[1729968400309,0.84728,2482.5,2482.4,1.71065667]
[1729968400510,0.444,2482.5,2482.3,1.72906667]
[1729968400715,0.81949,2482.4,2482.3,1.30736667]
[1729968400912,0.81949,2482.4,2482.3,1.71067667]
[1729968401607,0.4162,2482.4,2482.3,1.71067667]
[1729968401814,0.84728,2482.5,2482.4,0.40329]
[1729968402010,0.84728,2482.5,2482.4,1.71065667]
[1729968402714,0.84728,2482.5,2482.4,1.30736667]
[1729968403019,0.40329,2482.4,2482.3,1.30736667]
[1729968406222,1.8491,2482.8,2482.3,1.30736667]
[1729968406223,0.40319,2483.1,2482.9,0.40321]
[1729968406414,0.40318,2483.1,2483.0,1.30736667]
[1729968406615,0.40318,2483.1,2482.9,1.71057667]
[1729968406814,1.2821,2483.0,2482.9,1.71057667]
[1729968407011,1.98649854,2483.5,2483.0,4.0272]
[1729968407012,0.40312,2483.5,2483.0,4.0272]
[1729968407217,0.40312,2483.5,2483.4,1.30736667]
[1729968408119,2.58946667,2483.8,2483.4,1.30736667]
[1729968408120,3.2078,2484.2,2483.5,4.0264]
[1729968408420,9.94812482,2485.2,2483.9,2.83106469]
[1729968408421,0.83473,2484.1,2483.9,2.83106469]
[1729968408720,0.83473,2484.1,2483.9,3.23411469]
[1729968409109,0.4317,2484.1,2483.9,3.23411469]
[1729968409316,0.4317,2484.1,2483.9,2.83106469]
[1729968409616,0.4317,2484.1,2484.0,0.40303]
[1729968409819,0.4317,2484.1,2483.7,2.83106469]
[1729968410018,0.4317,2484.1,2483.4,2.83106469]
[1729968410220,0.40303,2484.0,2483.4,2.83106469]
[1729968410421,0.40303,2484.0,2483.7,0.40308]
[1729968411821,0.4317,2484.1,2483.4,2.83106469]
[1729968412321,0.40309,2483.7,2483.4,3.23418469]
[1729968412527,0.8229,2483.6,2483.4,3.23418469]
[1729968415733,0.8229,2483.6,2483.4,6.03886469]
[1729968415933,0.8229,2483.6,2483.4,6.44198469]
[1729968416434,0.8229,2483.6,2483.4,6.03886469]
[1729968416729,0.421,2484.2,2483.5,4.0264]
[1729968416923,0.421,2484.2,2484.1,0.40302]
[1729968417123,3.6459,2484.3,2484.1,0.40302]
[1729968417937,4.04889,2484.3,2484.0,0.40302]
[1729968418339,3.6459,2484.3,2484.1,0.40302]
[1729968419046,4.0489,2484.3,2484.0,0.40303]
[1729968420934,0.403,2484.2,2484.0,0.40303]
[1729968421347,0.40303,2484.1,2483.8,6.44192469]
[1729968421648,0.40302,2484.1,2483.8,0.40305]
[1729968422550,0.4381,2484.3,2483.7,0.40308]
[1729968422551,0.40305,2484.0,2483.7,0.40308]
[1729968422848,0.8636,2483.9,2483.7,0.40308]
[1729968423050,1.26665,2483.9,2483.7,0.40308]
[1729968423244,1.26665,2483.9,2483.8,0.40307]
[1729968423751,1.26666,2483.9,2483.7,0.40307]
[1729968424847,1.26666,2483.9,2483.6,2.83106469]
[1729968425141,1.26666,2483.9,2483.8,0.40307]
[1729968426239,0.40307,2483.8,2483.7,0.40308]
[1729968427737,1.26666,2483.9,2483.8,0.40307]
[1729968427946,1.26666,2483.9,2483.6,2.83106469]
[1729968428147,1.26666,2483.9,2483.7,0.40307]
[1729968428745,0.8636,2483.9,2483.6,2.83106469]
[1729968428948,0.8636,2483.9,2483.5,0.40311]
[1729968429257,0.4031,2483.6,2483.5,0.40311]
[1729968430045,4.0264,2483.6,2483.2,6.03886469]
[1729968430240,0.40314,2483.4,2483.3,0.40314]
[1729968430638,0.84694,2483.4,2483.3,0.40314]
[1729968431843,0.4438,2483.4,2483.3,0.40314]
[1729968433245,0.84693,2483.4,2483.3,0.40314]
[1729968434750,0.4097,2483.5,2483.2,2.83106469]
[1729968434953,0.81283,2483.5,2483.4,0.40313]
[1729968436856,0.81283,2483.5,2483.2,2.83106469]
[1729968436857,0.4097,2483.5,2483.2,2.83106469]
[1729968437059,0.40314,2483.4,2483.3,0.40314]
[1729968440649,0.4097,2483.5,2483.2,2.83106469]
[1729968440854,0.4261,2483.3,2483.2,3.23422469]
[1729968445561,1.26135,2483.3,2483.2,3.23422469]
[1729968446560,1.26135,2483.3,2483.2,0.40316]
[1729968447261,0.8582,2483.3,2483.0,6.03886469]
[1729968447462,1.86609,2483.3,2482.8,2.83106469]
[1729968447859,0.40321,2482.9,2482.6,6.03886469]
[1729968448163,1.86609,2483.3,2482.6,6.03886469]
[1729968448164,0.8346,2482.8,2482.7,0.40325]
[1729968452459,1.23783,2482.8,2482.7,0.40325]
[1729968454263,0.40325,2482.7,2482.6,3.23432469]
[1729968454467,0.85085,2482.7,2482.6,3.23432469]
[1729968454663,0.85085,2482.7,2482.6,2.83106469]
[1729968454874,0.85085,2482.7,2482.6,3.23432469]
[1729968455069,0.4476,2482.7,2482.4,2.83106469]
[1729968455270,0.4476,2482.7,2482.3,3.2078]
[1729968455471,0.40328,2482.5,2482.3,0.4033]
[1729968455670,0.4476,2482.7,2482.3,0.4033]
[1729968455671,1.25619,2482.4,2482.3,0.4033]
[1729968456069,1.25619,2482.4,2482.2,3.88365142]
[1729968456267,1.25619,2482.4,2482.2,4.28696142]
[1729968456469,1.25619,2482.4,2482.3,0.40331]
[1729968456773,0.8529,2482.4,2482.3,0.40331]
[1729968457171,1.25619,2482.4,2482.3,0.40331]
[1729968458170,0.8529,2482.4,2482.3,0.40331]
[1729968461573,1.25619,2482.4,2482.3,0.40331]
[1729968462883,6.88778388,2486.1,2482.3,4.0288]
[1729968462884,3.2078,2483.0,2482.3,4.0288]
[1729968463078,0.40327,2482.6,2482.5,2.83106469]
[1729968463373,0.40327,2482.6,2482.5,3.23434469]
[1729968464284,0.40327,2482.6,2482.5,1.71071856]
[1729968464484,0.8819,2482.8,2482.5,1.30743856]
[1729968464776,1.28513,2482.8,2482.7,1.30743856]
[1729968471291,0.8819,2482.8,2482.7,3.01812712]
[1729968471495,0.8819,2482.8,2482.7,4.91848856]
[1729968472192,0.8819,2482.8,2482.7,6.22592712]
[1729968472393,0.8819,2482.8,2482.7,4.91848856]
[1729968474293,0.8819,2482.8,2482.7,1.71068856]
[1729968474492,0.8819,2482.8,2482.7,4.91848856]
[1729968474897,0.8819,2482.8,2482.7,1.71068856]
[1729968475099,0.8819,2482.8,2482.7,4.91848856]
[1729968475501,0.8819,2482.8,2482.7,6.22592712]
[1729968475902,0.8819,2482.8,2482.7,4.91848856]
[1729968477197,0.4367,2483.0,2482.9,0.40321]
[1729968477405,0.40317,2483.2,2483.1,0.40317]
[1729968477703,0.40317,2483.2,2483.1,1.71060856]
[1729968477998,1.67706,2483.3,2483.2,0.40316]
[1729968478301,1.67706,2483.3,2483.2,1.30743856]
[1729968478797,2.98448856,2483.3,2483.2,1.30743856]
[1729968486703,1.2739,2483.3,2483.2,1.30743856]
[1729968486909,1.67705,2483.3,2483.2,1.30743856]
[1729968487109,1.67705,2483.3,2483.2,1.71059856]
[1729968487813,1.67705,2483.3,2483.2,1.30743856]
[1729968491200,6.60853856,2483.3,2483.1,1.30743856]
[1729968491408,1.30743856,2483.2,2483.1,1.30743856]
[1729968491712,1.71059856,2483.2,2483.1,1.30743856]
[1729968492010,0.40316,2483.2,2483.1,1.30743856]
[1729968492403,0.40316,2483.2,2483.1,1.71061856]
[1729968492916,0.40316,2483.2,2483.1,1.30743856]
[1729968496209,0.40316,2483.2,2483.1,1.71061856]
[1729968496611,0.40316,2483.2,2483.1,1.30743856]
[1729968502215,0.40316,2483.2,2483.1,1.71061856]
[1729968503711,0.40316,2483.2,2483.1,1.30743856]
[1729968504118,0.40318,2483.1,2482.8,3.61102]
[1729968504315,0.40318,2483.1,2483.0,1.30743856]
[1729968505022,0.40318,2483.1,2483.0,1.71063856]
[1729968505322,0.40318,2483.2,2483.0,1.71063856]
[1729968505618,0.40318,2483.2,2483.1,1.30743856]
[1729968506018,0.40318,2483.2,2483.1,1.71061856]
[1729968507224,0.40318,2483.2,2483.1,1.30743856]
[1729968509015,0.40318,2483.2,2483.1,1.71061856]
[1729968509626,0.40318,2483.2,2483.1,1.30743856]
[1729968510321,5.33463856,2483.2,2482.9,1.30743856]
[1729968510627,0.40316,2483.2,2483.1,1.30743856]
[1729968511614,0.40316,2483.2,2482.9,0.4032]
[1729968511931,0.40316,2483.2,2483.1,1.30743856]
[1729968514421,5.78913856,2483.3,2483.0,1.30743856]
[1729968514621,0.40318,2483.1,2483.0,1.30743856]
[1729968515420,0.40318,2483.1,2483.0,1.71063856]
[1729968515621,0.40318,2483.1,2483.0,1.43352108]
[1729968516221,0.40318,2483.1,2483.0,1.30743856]
[1729968516423,0.40318,2483.1,2483.0,1.43351959]
[1729968517334,0.40318,2483.1,2483.0,1.83671959]
[1729968518229,0.40318,2483.1,2483.0,1.43351959]
[1729968518924,0.40318,2483.1,2482.6,4.78668009]
[1729968518925,5.33463856,2483.1,2482.6,4.26038673]
[1729968519230,0.40321,2482.9,2482.7,0.12609227]
[1729968519429,0.40321,2482.9,2482.8,1.30743856]
[1729968519733,0.40321,2482.9,2482.8,1.43353048]
[1729968520121,0.40321,2482.9,2482.8,1.71066856]
[1729968520319,0.40321,2482.9,2482.8,1.43353121]
[1729968522833,0.40321,2482.9,2482.8,1.30743856]
[1729968524435,0.40321,2482.9,2482.8,1.43352732]
[1729968524627,0.40321,2482.9,2482.8,1.30743856]
[1729968525537,0.40321,2482.9,2482.8,1.71066856]
[1729968525735,0.40321,2482.9,2482.8,1.30743856]
[1729968526437,0.40319,2483.1,2483.0,0.40319]
[1729968526634,0.40318,2483.2,2483.0,1.71062856]
[1729968526828,0.40318,2483.2,2483.1,1.30743856]
[1729968528236,7.3278,2483.7,2483.3,0.40315]
[1729968528439,4.45188,2483.7,2483.6,1.30743856]
[1729968528826,0.4031,2483.6,2483.5,1.30743856]
[1729968529239,5.35623856,2483.7,2483.4,1.30743856]
[1729968529540,0.40312,2483.5,2483.4,1.30743856]
[1729968530044,0.40313,2483.4,2483.2,1.30743856]
[1729968530337,5.33383856,2483.5,2483.2,1.30743856]
[1729968530338,0.40315,2483.3,2483.2,1.30743856]
[1729968530542,0.82505,2483.3,2483.2,1.30743856]
[1729968531143,0.82505,2483.3,2483.1,1.30743856]
[1729968531144,0.40316,2483.2,2483.1,1.30743856]
[1729968531639,0.40316,2483.2,2482.7,4.87703856]
[1729968531640,0.40318,2483.1,2483.0,1.30743856]
[1729968532144,1.71061856,2483.1,2483.0,1.30743856]
[1729968532335,2.13171856,2483.1,2483.0,1.30743856]
[1729968533039,2.13171856,2483.1,2482.8,1.30743856]
[1729968533040,5.75573856,2483.1,2482.8,1.30743856]
[1729968533241,0.40321,2482.9,2482.8,1.30743856]
[1729968533636,0.84281,2482.9,2482.8,1.30743856]
[1729968537047,0.84281,2482.9,2482.8,1.30739714]
[1729968538456,1.74699714,2482.9,2482.4,3.2078]
[1729968538756,1.74699714,2482.9,2482.8,1.30739714]
[1729968539056,2.15020714,2482.9,2482.8,1.30739714]
[1729968543064,0.84281,2482.9,2482.8,1.30739714]
[1729968543661,0.84281,2482.9,2482.8,1.30733036]
[1729968552563,2.15014036,2482.9,2482.8,1.30733036]
[1729968553566,5.35794036,2482.9,2482.8,1.30733036]
[1729968554571,2.15014036,2482.9,2482.8,1.30733036]
[1729968555579,1.74693036,2482.9,2482.8,1.30733036]
[1729968555876,2.15014036,2482.9,2482.8,1.30733036]
[1729968557480,2.15014036,2482.9,2482.2,0.1559]
[1729968557481,1.0081,2482.8,2482.2,0.1559]
[1729968557675,0.40329,2482.5,2482.4,1.30733036]
[1729968558078,0.84479,2482.5,2482.4,1.30733036]
[1729968558275,1.29439,2482.5,2482.4,1.30733036]
[1729968558979,1.67076,2482.7,2482.4,1.30733036]
[1729968559183,0.82976,2482.7,2482.6,1.30733036]
[1729968559478,0.82976,2482.7,2482.6,1.71059036]
[1729968559986,0.4265,2482.7,2482.6,1.30733036]
[1729968560170,0.4265,2482.7,2482.6,1.71059036]
[1729968560375,0.82975,2482.7,2482.6,1.71059036]
[1729968561085,0.82975,2482.7,2482.6,1.30733036]
[1729968566882,0.82975,2482.7,2482.6,1.71059036]
[1729968567189,0.40325,2482.7,2482.6,1.30733036]
[1729968569485,0.42,2482.8,2482.7,0.40325]
[1729968569683,0.84269,2483.1,2482.9,0.4032]
[1729968569886,0.84269,2483.1,2483.0,1.30733036]
[1729968570481,0.4097,2483.2,2483.0,1.71053036]
[1729968570688,0.81287,2483.2,2483.1,1.71051036]
[1729968570889,0.81287,2483.2,2483.1,1.30733036]
[1729968573887,0.81286,2483.2,2483.1,1.30733036]
[1729968574192,0.4395,2483.3,2483.1,1.30733036]
[1729968574497,0.4395,2483.3,2483.2,1.71049036]
[1729968576091,3.61091,2483.6,2483.2,5.33453036]
[1729968576398,3.2078,2483.6,2483.5,1.71045036]
[1729968578890,3.2078,2483.6,2483.5,1.30733036]
[1729968579097,8.54153036,2483.6,2482.8,1.05258673]
[1729968579295,0.40316,2483.3,2483.2,1.30733036]
[1729968579686,1.71116,2483.3,2483.2,1.30733036]
[1729968581598,1.71116,2483.3,2483.2,1.71049036]
[1729968581897,1.71116,2483.3,2483.2,1.30733036]
[1729968583891,1.71116,2483.3,2483.2,1.71049036]
[1729968584293,1.71116,2483.3,2483.2,1.30733036]
[1729968589199,1.71116,2483.3,2483.2,1.71049036]
[1729968592600,1.308,2483.3,2483.2,1.71049036]
[1729968592900,1.00773,2483.7,2483.2,1.71049036]
[1729968592901,3.2078,2483.8,2483.6,0.4031]
[1729968593101,1.3036,2483.7,2483.6,1.30733036]
[1729968593401,1.70668,2483.7,2483.6,1.30733036]
[1729968594401,1.8078094,2483.7,2483.6,1.30733036]
[1729968594597,2.2108894,2483.7,2483.6,1.30733036]
[1729968595191,2.71510889,2483.7,2483.6,1.30733036]
[1729968595392,2.71510889,2483.7,2483.5,0.4031]
[1729968595706,0.50421949,2483.6,2483.5,0.4031]
[1729968595895,0.50421949,2483.6,2483.5,1.71043036]
[1729968596396,0.4031,2483.6,2483.5,1.71044036]
[1729968596999,0.4031,2483.6,2483.5,1.30733036]
[1729968597393,0.4031,2483.6,2483.5,1.71045036]
[1729968598698,0.4031,2483.6,2483.5,1.53940533]
[1729968599289,0.4031,2483.6,2483.5,0.32322065]
[1729968599505,0.4031,2483.6,2483.5,1.63055101]
[1729968600300,0.4031,2483.6,2482.4,3.2078]
[1729968600492,0.4031,2483.6,2483.5,1.71045036]
[1729968600694,0.4031,2483.6,2483.5,1.30733036]
[1729968600911,0.40312,2483.5,2483.4,1.30733036]
[1729968601206,3.61092,2483.5,2483.4,1.30733036]
[1729968602504,3.61092,2483.5,2483.4,2.26539416]
[1729968602898,3.61092,2483.5,2483.4,2.66852416]
[1729968603202,3.2078,2483.5,2483.4,8.00225452]
[1729968603500,3.2078,2483.5,2483.4,10.52330296]
[1729968603909,3.2078,2483.5,2483.4,10.52299991]
[1729968604201,3.2078,2483.5,2483.4,10.56830154]
[1729968605101,3.2078,2483.5,2483.4,10.56829916]
[1729968605503,0.8688,2483.7,2483.4,10.16516916]
[1729968605806,0.8688,2483.7,2483.6,1.71043036]
[1729968606006,0.8688,2483.7,2483.6,7.95520393]
[1729968606204,1.27188,2483.7,2483.6,7.95520393]
[1729968606405,0.8688,2483.7,2483.6,7.95520393]
[1729968606600,3.2078,2483.8,2483.7,0.40308]
[1729968606804,3.2078,2483.8,2483.7,7.95518393]
[1729968606805,3.61087,2483.8,2483.7,7.95518393]
[1729968607502,3.2078,2483.8,2483.7,7.95508778]
[1729968609306,3.2078,2483.8,2483.7,8.00036641]